[Event "Titled Tuesday Blitz September 13 Late 2022"]
[White "Xiong, Jeffery"]
[Black "Barria Santos, Jose Guilherme"]
[WhiteFideId "2047640"]
[BlackFideId "1939300"]
[WhiteElo "2714"]
[BlackElo "2263"]
[Result "1-0"]
[Round "01"]
[TimeControl "180+1"]
[Date "2022.09.13"]
[WhiteClock "0:02:35"]
[BlackClock "0:01:43"]

1. e4 {[%clk 0:03:00]}  c5 {[%clk 0:02:54]} 2. Nf3 {[%clk 0:03:00]}  e6 {[%clk 0:02:54]} 3. g3 {[%clk 0:02:59]}  Nc6 {[%clk 0:02:51]} 4. Bg2 {[%clk 0:02:59]}  g6 {[%clk 0:02:50]} 5. d4 {[%clk 0:02:58]}  cxd4 {[%clk 0:02:46]} 6. Nxd4 {[%clk 0:02:59]}  Bc5 {[%clk 0:02:41]} 7. Nb3 {[%clk 0:02:53]}  Nge7 {[%clk 0:02:34]} 8. Nxc5 {[%clk 0:02:50]}  Qa5+ {[%clk 0:02:34]} 9. Nc3 {[%clk 0:02:51]}  Qxc5 {[%clk 0:02:34]} 10. Bh6 {[%clk 0:02:42]}  Qd4 {[%clk 0:02:17]} 11. Qxd4 {[%clk 0:02:38]}  Nxd4 {[%clk 0:02:18]} 12. O-O-O {[%clk 0:02:38]}  Nec6 {[%clk 0:02:02]} 13. Bg7 {[%clk 0:02:37]}  Rg8 {[%clk 0:01:46]} 14. Bxd4 {[%clk 0:02:37]}  Nxd4 {[%clk 0:01:47]} 15. Rxd4 {[%clk 0:02:37]}  a6 {[%clk 0:01:48]} 16. e5 {[%clk 0:02:37]}  Rb8 {[%clk 0:01:46]} 17. Ne4 {[%clk 0:02:37]}  Ke7 {[%clk 0:01:44]} 18. Nf6 {[%clk 0:02:36]}  Rd8 {[%clk 0:01:45]} 19. Rd6 {[%clk 0:02:36]}  b5 {[%clk 0:01:44]} 20. Rhd1 {[%clk 0:02:36]}  h6 {[%clk 0:01:43]} 21. Bc6 {[%clk 0:02:35]} 1-0


[Site "https://www.chess.com"]

[Event "Titled Tuesday Blitz September 13 Late 2022"]
[White "Andreikin, Dmitry"]
[Black "Navarrete Mendez, Gonzalo Alberto"]
[WhiteFideId "4158814"]
[BlackFideId "5106850"]
[WhiteElo "2736"]
[BlackElo "2261"]
[Result "1-0"]
[Round "02"]
[TimeControl "180+1"]
[Date "2022.09.13"]
[WhiteClock "0:01:24"]
[BlackClock "0:00:05"]

1. d4 {[%clk 0:03:00]}  d5 {[%clk 0:02:59]} 2. c4 {[%clk 0:03:01]}  dxc4 {[%clk 0:03:00]} 3. e4 {[%clk 0:02:59]}  b5 {[%clk 0:02:59]} 4. a4 {[%clk 0:02:56]}  c6 {[%clk 0:02:59]} 5. axb5 {[%clk 0:02:53]}  cxb5 {[%clk 0:03:00]} 6. Nc3 {[%clk 0:02:53]}  a6 {[%clk 0:02:59]} 7. Nxb5 {[%clk 0:02:52]}  axb5 {[%clk 0:03:00]} 8. Rxa8 {[%clk 0:02:52]}  Bb7 {[%clk 0:03:00]} 9. Ra1 {[%clk 0:02:52]}  e6 {[%clk 0:02:59]} 10. Ne2 {[%clk 0:02:47]}  Nf6 {[%clk 0:02:55]} 11. f3 {[%clk 0:02:39]}  Nc6 {[%clk 0:02:40]} 12. Be3 {[%clk 0:02:39]}  Na5 {[%clk 0:02:37]} 13. Nc3 {[%clk 0:02:34]}  Qb6 {[%clk 0:02:12]} 14. Nxb5 {[%clk 0:01:52]}  Qxb5 {[%clk 0:01:59]} 15. Qa4 {[%clk 0:01:51]}  Bb4+ {[%clk 0:01:52]} 16. Bd2 {[%clk 0:01:37]}  Bxd2+ {[%clk 0:01:49]} 17. Kxd2 {[%clk 0:01:38]}  Nb3+ {[%clk 0:01:48]} 18. Kc3 {[%clk 0:01:37]}  Qd7 {[%clk 0:01:02]} 19. Bxc4 {[%clk 0:01:32]}  O-O {[%clk 0:00:10]} 20. Qxd7 {[%clk 0:01:29]}  Nxd7 {[%clk 0:00:10]} 21. Bxb3 {[%clk 0:01:27]}  Nb6 {[%clk 0:00:09]} 22. Rhc1 {[%clk 0:01:24]}  Rc8+ {[%clk 0:00:04]} 23. Kd2 {[%clk 0:01:24]}  Rd8 {[%clk 0:00:05]} 24. Ke3 {[%clk 0:01:24]} 1-0


[Site "https://www.chess.com"]

[Event "Titled Tuesday Blitz September 13 Late 2022"]
[White "Barria Zuniga, Daniel"]
[Black "Lenderman, Aleksandr"]
[WhiteFideId "3400816"]
[BlackFideId "2021285"]
[WhiteElo "2414"]
[BlackElo "2607"]
[Result "0-1"]
[Round "02"]
[TimeControl "180+1"]
[Date "2022.09.13"]
[WhiteClock "0:00:54"]
[BlackClock "0:02:26"]

1. d4 {[%clk 0:02:59]}  e6 {[%clk 0:03:00]} 2. c4 {[%clk 0:02:52]}  b6 {[%clk 0:03:01]} 3. Nf3 {[%clk 0:02:52]}  Bb7 {[%clk 0:03:01]} 4. g3 {[%clk 0:02:52]}  Bb4+ {[%clk 0:02:58]} 5. Nbd2 {[%clk 0:02:46]}  Bxf3 {[%clk 0:02:56]} 6. exf3 {[%clk 0:02:46]}  Nc6 {[%clk 0:02:56]} 7. a3 {[%clk 0:02:45]}  Bxd2+ {[%clk 0:02:50]} 8. Qxd2 {[%clk 0:02:45]}  Qf6 {[%clk 0:02:49]} 9. d5 {[%clk 0:02:17]}  Nd4 {[%clk 0:02:49]} 10. Qc3 {[%clk 0:02:05]}  Nxf3+ {[%clk 0:02:44]} 11. Ke2 {[%clk 0:02:06]}  Nd4+ {[%clk 0:02:43]} 12. Kd3 {[%clk 0:02:03]}  c5 {[%clk 0:02:41]} 13. dxc6 {[%clk 0:01:59]}  dxc6 {[%clk 0:02:41]} 14. Qxd4 {[%clk 0:01:31]}  Rd8 {[%clk 0:02:39]} 15. Qxd8+ {[%clk 0:01:30]}  Kxd8 {[%clk 0:02:36]} 16. Kc2 {[%clk 0:01:14]}  Qf3 {[%clk 0:02:31]} 17. Be3 {[%clk 0:01:09]}  Qxh1 {[%clk 0:02:28]} 18. Bd3 {[%clk 0:00:56]}  Qxa1 {[%clk 0:02:27]} 19. Bc1 {[%clk 0:00:54]}  Nf6 {[%clk 0:02:26]} 0-1


[Site "https://www.chess.com"]

[Event "Titled Tuesday Blitz September 13 Late 2022"]
[White "Danielyan, Vahe"]
[Black "Makarian, Rudik"]
[WhiteFideId "13304828"]
[BlackFideId "44105681"]
[WhiteElo "2421"]
[BlackElo "2410"]
[Result "0-1"]
[Round "02"]
[TimeControl "180+1"]
[Date "2022.09.13"]
[WhiteClock "0:01:43"]
[BlackClock "0:01:46"]

1. Nf3 {[%clk 0:03:00]}  Nf6 {[%clk 0:02:59]} 2. c4 {[%clk 0:03:01]}  g6 {[%clk 0:02:59]} 3. g3 {[%clk 0:03:00]}  Bg7 {[%clk 0:02:59]} 4. Bg2 {[%clk 0:03:01]}  c5 {[%clk 0:03:00]} 5. O-O {[%clk 0:03:01]}  Nc6 {[%clk 0:03:01]} 6. Nc3 {[%clk 0:03:02]}  d6 {[%clk 0:03:01]} 7. d4 {[%clk 0:03:02]}  cxd4 {[%clk 0:03:02]} 8. Nxd4 {[%clk 0:03:03]}  Bd7 {[%clk 0:03:03]} 9. Nc2 {[%clk 0:03:02]}  Qc8 {[%clk 0:03:03]} 10. Bg5 {[%clk 0:03:00]}  Bh3 {[%clk 0:03:02]} 11. Ne3 {[%clk 0:02:58]}  Bxg2 {[%clk 0:02:32]} 12. Kxg2 {[%clk 0:02:59]}  h6 {[%clk 0:02:32]} 13. Bxf6 {[%clk 0:02:57]}  Bxf6 {[%clk 0:02:33]} 14. Rc1 {[%clk 0:02:56]}  O-O {[%clk 0:02:32]} 15. Qd2 {[%clk 0:02:55]}  Bg7 {[%clk 0:02:32]} 16. Ncd5 {[%clk 0:02:45]}  Re8 {[%clk 0:02:28]} 17. h4 {[%clk 0:02:46]}  h5 {[%clk 0:02:28]} 18. f4 {[%clk 0:02:43]}  e6 {[%clk 0:02:22]} 19. Nc3 {[%clk 0:02:41]}  Ne7 {[%clk 0:02:03]} 20. Ne4 {[%clk 0:02:39]}  Qc6 {[%clk 0:01:59]} 21. Nd5 {[%clk 0:01:45]}  exd5 {[%clk 0:01:57]} 22. Ng5 {[%clk 0:01:45]}  dxc4+ {[%clk 0:01:54]} 23. Kh2 {[%clk 0:01:46]}  d5 {[%clk 0:01:48]} 24. b3 {[%clk 0:01:43]}  c3 {[%clk 0:01:45]} 25. Qd3 {[%clk 0:01:43]}  Nf5 {[%clk 0:01:46]} 0-1


[Site "https://www.chess.com"]

[Event "Titled Tuesday Blitz September 13 Late 2022"]
[White "Dilanyan, Grigor"]
[Black "Hansen, Eric"]
[WhiteFideId "13303570"]
[BlackFideId "2606771"]
[WhiteElo "2264"]
[BlackElo "2568"]
[Result "0-1"]
[Round "02"]
[TimeControl "180+1"]
[Date "2022.09.13"]
[WhiteClock "0:00:18"]
[BlackClock "0:01:14"]

1. Nf3 {[%clk 0:03:00]}  d5 {[%clk 0:03:00]} 2. g3 {[%clk 0:02:58]}  c6 {[%clk 0:02:58]} 3. Bg2 {[%clk 0:02:57]}  Nf6 {[%clk 0:02:58]} 4. O-O {[%clk 0:02:58]}  Bf5 {[%clk 0:02:59]} 5. b3 {[%clk 0:02:58]}  e6 {[%clk 0:02:59]} 6. Bb2 {[%clk 0:02:59]}  h6 {[%clk 0:02:59]} 7. d3 {[%clk 0:02:59]}  Be7 {[%clk 0:03:00]} 8. Nbd2 {[%clk 0:03:00]}  O-O {[%clk 0:03:00]} 9. Re1 {[%clk 0:03:01]}  Bh7 {[%clk 0:03:00]} 10. e4 {[%clk 0:03:01]}  a5 {[%clk 0:03:00]} 11. a4 {[%clk 0:03:01]}  Na6 {[%clk 0:02:59]} 12. exd5 {[%clk 0:02:56]}  cxd5 {[%clk 0:02:55]} 13. Nd4 {[%clk 0:02:55]}  Nb4 {[%clk 0:02:54]} 14. Nb5 {[%clk 0:02:53]}  Rc8 {[%clk 0:02:52]} 15. Rc1 {[%clk 0:02:50]}  Na2 {[%clk 0:02:52]} 16. Ra1 {[%clk 0:02:49]}  Nb4 {[%clk 0:02:53]} 17. Rc1 {[%clk 0:02:50]}  Nd7 {[%clk 0:02:47]} 18. Nf3 {[%clk 0:02:47]}  Bf6 {[%clk 0:02:45]} 19. Ba3 {[%clk 0:02:36]}  Nc5 {[%clk 0:02:41]} 20. Bxb4 {[%clk 0:02:35]}  axb4 {[%clk 0:02:41]} 21. Qd2 {[%clk 0:02:35]}  Qa5 {[%clk 0:02:25]} 22. Ne5 {[%clk 0:02:26]}  Bxe5 {[%clk 0:02:20]} 23. Rxe5 {[%clk 0:02:25]}  Bxd3 {[%clk 0:02:21]} 24. Rce1 {[%clk 0:01:59]}  Bxb5 {[%clk 0:02:16]} 25. axb5 {[%clk 0:01:58]}  Qxb5 {[%clk 0:02:17]} 26. f4 {[%clk 0:01:58]}  Qb6 {[%clk 0:02:17]} 27. Kh1 {[%clk 0:01:57]}  Rfd8 {[%clk 0:02:06]} 28. f5 {[%clk 0:01:57]}  exf5 {[%clk 0:02:04]} 29. Rxf5 {[%clk 0:01:54]}  Ne4 {[%clk 0:02:04]} 30. Qe2 {[%clk 0:01:44]}  Re8 {[%clk 0:01:58]} 31. Qf3 {[%clk 0:01:25]}  Rxc2 {[%clk 0:01:43]} 32. Rf1 {[%clk 0:01:25]}  Nf6 {[%clk 0:01:36]} 33. Rxd5 {[%clk 0:01:09]}  Ree2 {[%clk 0:01:35]} 34. Qd3 {[%clk 0:00:57]}  Nxd5 {[%clk 0:01:29]} 35. Qxd5 {[%clk 0:00:57]}  Rxg2 {[%clk 0:01:27]} 36. Qxf7+ {[%clk 0:00:56]}  Kh7 {[%clk 0:01:27]} 37. Qh5 {[%clk 0:00:16]}  Rxh2+ {[%clk 0:01:26]} 38. Qxh2 {[%clk 0:00:17]}  Qc6+ {[%clk 0:01:23]} 39. Kg1 {[%clk 0:00:16]}  Rxh2 {[%clk 0:01:24]} 40. Kxh2 {[%clk 0:00:17]}  Qc2+ {[%clk 0:01:24]} 41. Kh3 {[%clk 0:00:17]}  Qxb3 {[%clk 0:01:25]} 42. Rf4 {[%clk 0:00:18]}  Qe6+ {[%clk 0:01:24]} 43. Kh4 {[%clk 0:00:17]}  g5+ {[%clk 0:01:24]} 44. Kh5 {[%clk 0:00:18]}  Qh3+ {[%clk 0:01:16]} 45. Rh4 {[%clk 0:00:18]}  Qf5 {[%clk 0:01:16]} 46. g4 {[%clk 0:00:18]}  Qf7# {[%clk 0:01:14]} 0-1


[Site "https://www.chess.com"]

[Event "Titled Tuesday Blitz September 13 Late 2022"]
[White "Gokerkan, Cem Kaan"]
[Black "Bayo Milagro, Alvaro"]
[WhiteFideId "6336760"]
[BlackFideId "22275240"]
[WhiteElo "2364"]
[BlackElo "2270"]
[Result "0-1"]
[Round "02"]
[TimeControl "180+1"]
[Date "2022.09.13"]
[WhiteClock "0:00:24"]
[BlackClock "0:00:18"]

1. e4 {[%clk 0:03:00]}  c5 {[%clk 0:02:58]} 2. c3 {[%clk 0:02:59]}  Nf6 {[%clk 0:02:57]} 3. e5 {[%clk 0:02:59]}  Nd5 {[%clk 0:02:57]} 4. d4 {[%clk 0:03:00]}  cxd4 {[%clk 0:02:57]} 5. Nf3 {[%clk 0:02:58]}  e6 {[%clk 0:02:57]} 6. cxd4 {[%clk 0:02:56]}  b6 {[%clk 0:02:58]} 7. Bd3 {[%clk 0:02:53]}  Ba6 {[%clk 0:02:57]} 8. Bxa6 {[%clk 0:02:51]}  Nxa6 {[%clk 0:02:57]} 9. O-O {[%clk 0:02:51]}  Nac7 {[%clk 0:02:53]} 10. Nbd2 {[%clk 0:02:51]}  d6 {[%clk 0:02:47]} 11. Ne4 {[%clk 0:02:51]}  dxe5 {[%clk 0:02:47]} 12. dxe5 {[%clk 0:02:52]}  Be7 {[%clk 0:02:45]} 13. Bg5 {[%clk 0:02:51]}  O-O {[%clk 0:02:43]} 14. Rc1 {[%clk 0:02:49]}  h6 {[%clk 0:02:33]} 15. Bxe7 {[%clk 0:02:45]}  Qxe7 {[%clk 0:02:33]} 16. Nd4 {[%clk 0:02:41]}  Qh4 {[%clk 0:02:13]} 17. Re1 {[%clk 0:02:35]}  Rfd8 {[%clk 0:01:57]} 18. Nd6 {[%clk 0:02:25]}  Ne8 {[%clk 0:01:49]} 19. N4b5 {[%clk 0:01:59]}  a6 {[%clk 0:01:40]} 20. Nxe8 {[%clk 0:01:55]}  axb5 {[%clk 0:01:32]} 21. Nd6 {[%clk 0:01:55]}  Rxa2 {[%clk 0:01:30]} 22. Qb3 {[%clk 0:01:50]}  Qa4 {[%clk 0:01:18]} 23. Qf3 {[%clk 0:01:50]}  Qf4 {[%clk 0:01:13]} 24. Qxf4 {[%clk 0:01:46]}  Nxf4 {[%clk 0:01:12]} 25. Rc7 {[%clk 0:01:47]}  Nd3 {[%clk 0:01:06]} 26. Nxf7 {[%clk 0:01:46]}  Rf8 {[%clk 0:00:58]} 27. Nxh6+ {[%clk 0:01:04]}  gxh6 {[%clk 0:00:56]} 28. Rf1 {[%clk 0:00:57]}  Rxb2 {[%clk 0:00:55]} 29. f3 {[%clk 0:00:57]}  Nxe5 {[%clk 0:00:47]} 30. Re1 {[%clk 0:00:54]}  Nd3 {[%clk 0:00:46]} 31. Rd1 {[%clk 0:00:53]}  Ra8 {[%clk 0:00:34]} 32. h4 {[%clk 0:00:33]}  Nf4 {[%clk 0:00:31]} 33. g4 {[%clk 0:00:32]}  Nd5 {[%clk 0:00:28]} 34. Rc6 {[%clk 0:00:27]}  Raa2 {[%clk 0:00:25]} 35. Rxe6 {[%clk 0:00:28]}  Rg2+ {[%clk 0:00:25]} 36. Kh1 {[%clk 0:00:26]}  Rh2+ {[%clk 0:00:26]} 37. Kg1 {[%clk 0:00:27]}  Rag2+ {[%clk 0:00:26]} 38. Kf1 {[%clk 0:00:27]}  Nf4 {[%clk 0:00:20]} 39. Rd8+ {[%clk 0:00:23]}  Kf7 {[%clk 0:00:20]} 40. Rf8+ {[%clk 0:00:24]}  Kxe6 {[%clk 0:00:18]} 41. Rxf4 {[%clk 0:00:25]}  Ra2 {[%clk 0:00:18]} 42. Re4+ {[%clk 0:00:25]}  Kd5 {[%clk 0:00:18]} 43. Re1 {[%clk 0:00:24]}  Rh1# {[%clk 0:00:18]} 0-1


[Site "https://www.chess.com"]

[Event "Titled Tuesday Blitz September 13 Late 2022"]
[White "Ibarra Jerez, Jose Carlos"]
[Black "Riff, Vincent"]
[WhiteFideId "2226332"]
[BlackFideId "617776"]
[WhiteElo "2627"]
[BlackElo "2369"]
[Result "1-0"]
[Round "02"]
[TimeControl "180+1"]
[Date "2022.09.13"]
[WhiteClock "0:00:11"]
[BlackClock "0:00:24"]

1. Nf3 {[%clk 0:03:00]}  Nf6 {[%clk 0:00:40]} 2. g3 {[%clk 0:02:57]}  d5 {[%clk 0:00:41]} 3. Bg2 {[%clk 0:02:57]}  c6 {[%clk 0:00:41]} 4. O-O {[%clk 0:02:57]}  Bf5 {[%clk 0:00:42]} 5. d3 {[%clk 0:02:57]}  e6 {[%clk 0:00:43]} 6. c4 {[%clk 0:02:58]}  Be7 {[%clk 0:00:43]} 7. Be3 {[%clk 0:02:58]}  O-O {[%clk 0:00:43]} 8. Qb3 {[%clk 0:02:59]}  Qc8 {[%clk 0:00:44]} 9. Nc3 {[%clk 0:02:58]}  Nbd7 {[%clk 0:00:44]} 10. Rac1 {[%clk 0:02:58]}  Qb8 {[%clk 0:00:40]} 11. cxd5 {[%clk 0:02:57]}  exd5 {[%clk 0:00:40]} 12. Bf4 {[%clk 0:02:57]}  Qc8 {[%clk 0:00:38]} 13. Nd4 {[%clk 0:02:49]}  Bg6 {[%clk 0:00:37]} 14. Nxd5 {[%clk 0:02:46]}  Nxd5 {[%clk 0:00:35]} 15. Bxd5 {[%clk 0:02:47]}  Nc5 {[%clk 0:00:35]} 16. Qa3 {[%clk 0:02:41]}  cxd5 {[%clk 0:00:33]} 17. b4 {[%clk 0:02:41]}  b6 {[%clk 0:00:34]} 18. bxc5 {[%clk 0:02:23]}  Bxc5 {[%clk 0:00:34]} 19. Qa4 {[%clk 0:02:02]}  Qh3 {[%clk 0:00:33]} 20. Nc6 {[%clk 0:01:53]}  Rfe8 {[%clk 0:00:32]} 21. d4 {[%clk 0:01:39]}  Bf8 {[%clk 0:00:32]} 22. Ne5 {[%clk 0:01:39]}  f6 {[%clk 0:00:30]} 23. Nxg6 {[%clk 0:01:25]}  hxg6 {[%clk 0:00:31]} 24. Qb5 {[%clk 0:01:26]}  g5 {[%clk 0:00:30]} 25. Qxd5+ {[%clk 0:01:20]}  Kh7 {[%clk 0:00:29]} 26. Be3 {[%clk 0:01:15]}  Rad8 {[%clk 0:00:29]} 27. Qf3 {[%clk 0:01:12]}  Bd6 {[%clk 0:00:29]} 28. Rc6 {[%clk 0:01:10]}  Bb8 {[%clk 0:00:29]} 29. Rfc1 {[%clk 0:01:06]}  Re7 {[%clk 0:00:29]} 30. a4 {[%clk 0:00:59]}  Rde8 {[%clk 0:00:29]} 31. d5 {[%clk 0:00:54]}  Rd7 {[%clk 0:00:28]} 32. Rd1 {[%clk 0:00:51]}  Re5 {[%clk 0:00:28]} 33. Rd3 {[%clk 0:00:34]}  Qh6 {[%clk 0:00:26]} 34. Kg2 {[%clk 0:00:32]}  Qg6 {[%clk 0:00:25]} 35. g4 {[%clk 0:00:30]}  Re4 {[%clk 0:00:26]} 36. h3 {[%clk 0:00:28]}  Re5 {[%clk 0:00:25]} 37. a5 {[%clk 0:00:22]}  bxa5 {[%clk 0:00:24]} 38. Ra6 {[%clk 0:00:23]}  Qf7 {[%clk 0:00:22]} 39. Rxa5 {[%clk 0:00:19]}  g6 {[%clk 0:00:22]} 40. Rb5 {[%clk 0:00:16]}  Bd6 {[%clk 0:00:22]} 41. Bd4 {[%clk 0:00:16]}  Kh6 {[%clk 0:00:20]} 42. Bxe5 {[%clk 0:00:16]}  Bxe5 {[%clk 0:00:21]} 43. d6 {[%clk 0:00:14]}  Qe6 {[%clk 0:00:20]} 44. Rbd5 {[%clk 0:00:13]}  a5 {[%clk 0:00:20]} 45. Rxa5 {[%clk 0:00:12]}  Rxd6 {[%clk 0:00:20]} 46. Rxd6 {[%clk 0:00:12]}  Qxd6 {[%clk 0:00:21]} 47. Rd5 {[%clk 0:00:12]}  Qe6 {[%clk 0:00:21]} 48. Rd3 {[%clk 0:00:12]}  Kg7 {[%clk 0:00:21]} 49. Qb7+ {[%clk 0:00:12]}  Kh6 {[%clk 0:00:20]} 50. Rd7 {[%clk 0:00:12]}  Qg8 {[%clk 0:00:19]} 51. Qd5 {[%clk 0:00:10]}  Qxd5+ {[%clk 0:00:18]} 52. Rxd5 {[%clk 0:00:09]}  Kg7 {[%clk 0:00:19]} 53. Kf3 {[%clk 0:00:09]}  Bf4 {[%clk 0:00:19]} 54. e3 {[%clk 0:00:09]}  Bh2 {[%clk 0:00:19]} 55. Rd7+ {[%clk 0:00:09]}  Kf8 {[%clk 0:00:19]} 56. Ke4 {[%clk 0:00:10]}  Bg1 {[%clk 0:00:19]} 57. f3 {[%clk 0:00:09]}  Bf2 {[%clk 0:00:19]} 58. Rb7 {[%clk 0:00:09]}  Kg8 {[%clk 0:00:19]} 59. Kd3 {[%clk 0:00:09]}  Kf8 {[%clk 0:00:19]} 60. e4 {[%clk 0:00:09]}  Bg3 {[%clk 0:00:20]} 61. Kc4 {[%clk 0:00:09]}  Ke8 {[%clk 0:00:20]} 62. Kd5 {[%clk 0:00:10]}  Kf8 {[%clk 0:00:20]} 63. Ke6 {[%clk 0:00:10]}  Be5 {[%clk 0:00:21]} 64. Rf7+ {[%clk 0:00:09]}  Kg8 {[%clk 0:00:21]} 65. Rxf6 {[%clk 0:00:10]}  Bxf6 {[%clk 0:00:22]} 66. Kxf6 {[%clk 0:00:10]}  Kh7 {[%clk 0:00:23]} 67. e5 {[%clk 0:00:11]}  Kh6 {[%clk 0:00:23]} 68. e6 {[%clk 0:00:11]}  Kh7 {[%clk 0:00:24]} 69. Kxg5 {[%clk 0:00:11]} 1-0


[Site "https://www.chess.com"]

[Event "Titled Tuesday Blitz September 13 Late 2022"]
[White "Ivic, Velimir"]
[Black "Martinez Reyes, Pedro Ramon"]
[WhiteFideId "950122"]
[BlackFideId "3901807"]
[WhiteElo "2625"]
[BlackElo "2327"]
[Result "1-0"]
[Round "02"]
[TimeControl "180+1"]
[Date "2022.09.13"]
[WhiteClock "0:02:45"]
[BlackClock "0:02:21"]

1. e4 {[%clk 0:03:00]}  e6 {[%clk 0:03:00]} 2. d4 {[%clk 0:03:00]}  d5 {[%clk 0:03:00]} 3. Nc3 {[%clk 0:02:59]}  Nf6 {[%clk 0:03:00]} 4. e5 {[%clk 0:02:59]}  Ne4 {[%clk 0:03:01]} 5. Nxe4 {[%clk 0:02:59]}  dxe4 {[%clk 0:03:01]} 6. Bc4 {[%clk 0:03:00]}  Qd7 {[%clk 0:03:01]} 7. Ne2 {[%clk 0:03:00]}  c5 {[%clk 0:03:02]} 8. O-O {[%clk 0:02:52]}  b5 {[%clk 0:03:02]} 9. d5 {[%clk 0:02:45]}  bxc4 {[%clk 0:02:57]} 10. d6 {[%clk 0:02:45]}  Nc6 {[%clk 0:02:54]} 11. Bf4 {[%clk 0:02:44]}  h6 {[%clk 0:02:34]} 12. Nc3 {[%clk 0:02:44]}  g5 {[%clk 0:02:34]} 13. Bg3 {[%clk 0:02:44]}  Bg7 {[%clk 0:02:25]} 14. Nxe4 {[%clk 0:02:45]}  Bxe5 {[%clk 0:02:25]} 15. Bxe5 {[%clk 0:02:44]}  Nxe5 {[%clk 0:02:21]} 16. Nf6+ {[%clk 0:02:45]} 1-0


[Site "https://www.chess.com"]

[Event "Titled Tuesday Blitz September 13 Late 2022"]
[White "Jobava, Baadur"]
[Black "Sargsyan, Anna M."]
[WhiteFideId "13601520"]
[BlackFideId "13308130"]
[WhiteElo "2582"]
[BlackElo "2271"]
[Result "1-0"]
[Round "02"]
[TimeControl "180+1"]
[Date "2022.09.13"]
[WhiteClock "0:00:47"]
[BlackClock "0:00:01"]

1. b3 {[%clk 0:03:00]}  e5 {[%clk 0:02:54]} 2. Bb2 {[%clk 0:03:01]}  Nc6 {[%clk 0:02:53]} 3. Nf3 {[%clk 0:03:02]}  d6 {[%clk 0:02:53]} 4. d4 {[%clk 0:03:02]}  e4 {[%clk 0:02:52]} 5. d5 {[%clk 0:03:03]}  exf3 {[%clk 0:02:51]} 6. dxc6 {[%clk 0:03:03]}  bxc6 {[%clk 0:02:52]} 7. exf3 {[%clk 0:03:04]}  Nf6 {[%clk 0:02:50]} 8. Bd3 {[%clk 0:03:04]}  Be7 {[%clk 0:02:50]} 9. O-O {[%clk 0:03:05]}  O-O {[%clk 0:02:51]} 10. Re1 {[%clk 0:03:06]}  Be6 {[%clk 0:02:51]} 11. Nd2 {[%clk 0:03:04]}  Nd7 {[%clk 0:02:52]} 12. c3 {[%clk 0:02:47]}  Rb8 {[%clk 0:02:51]} 13. Qc2 {[%clk 0:02:45]}  h6 {[%clk 0:02:50]} 14. Rad1 {[%clk 0:02:44]}  Qc8 {[%clk 0:02:46]} 15. c4 {[%clk 0:02:39]}  Bf6 {[%clk 0:02:46]} 16. Bc1 {[%clk 0:02:37]}  Nc5 {[%clk 0:02:39]} 17. Ne4 {[%clk 0:02:35]}  Nxe4 {[%clk 0:02:36]} 18. Bxe4 {[%clk 0:02:36]}  c5 {[%clk 0:02:21]} 19. Re2 {[%clk 0:02:35]}  a5 {[%clk 0:02:19]} 20. Rde1 {[%clk 0:02:32]}  a4 {[%clk 0:02:18]} 21. bxa4 {[%clk 0:02:25]}  Qa6 {[%clk 0:02:18]} 22. Bd3 {[%clk 0:02:01]}  Ra8 {[%clk 0:02:12]} 23. Rxe6 {[%clk 0:01:53]}  fxe6 {[%clk 0:02:12]} 24. Qe2 {[%clk 0:01:54]}  Rfe8 {[%clk 0:01:12]} 25. Qe4 {[%clk 0:01:53]}  Qa5 {[%clk 0:01:06]} 26. g3 {[%clk 0:01:47]}  Kf8 {[%clk 0:00:50]} 27. Bc2 {[%clk 0:01:43]}  d5 {[%clk 0:00:45]} 28. Qe2 {[%clk 0:01:43]}  Qc3 {[%clk 0:00:36]} 29. Bg6 {[%clk 0:01:30]}  Re7 {[%clk 0:00:35]} 30. Be3 {[%clk 0:01:29]}  d4 {[%clk 0:00:31]} 31. Bf4 {[%clk 0:01:25]}  Rxa4 {[%clk 0:00:22]} 32. Rb1 {[%clk 0:01:24]}  Rb4 {[%clk 0:00:22]} 33. Rc1 {[%clk 0:01:22]}  Qa3 {[%clk 0:00:20]} 34. Qe4 {[%clk 0:01:16]}  e5 {[%clk 0:00:18]} 35. Bd2 {[%clk 0:01:15]}  Rb8 {[%clk 0:00:17]} 36. Qd5 {[%clk 0:01:13]}  Qa6 {[%clk 0:00:10]} 37. Qxc5 {[%clk 0:01:05]}  Qd6 {[%clk 0:00:10]} 38. Qa5 {[%clk 0:01:04]}  c5 {[%clk 0:00:10]} 39. Be4 {[%clk 0:01:03]}  Qb6 {[%clk 0:00:10]} 40. Qa4 {[%clk 0:00:59]}  Ra7 {[%clk 0:00:08]} 41. Qd1 {[%clk 0:00:59]}  Rxa2 {[%clk 0:00:08]} 42. Kg2 {[%clk 0:00:57]}  Rb2 {[%clk 0:00:07]} 43. Ra1 {[%clk 0:00:56]}  Qb3 {[%clk 0:00:07]} 44. Qc1 {[%clk 0:00:54]}  Kg8 {[%clk 0:00:05]} 45. Bxh6 {[%clk 0:00:53]}  Qc3 {[%clk 0:00:04]} 46. Qxc3 {[%clk 0:00:47]}  dxc3 {[%clk 0:00:04]} 47. Be3 {[%clk 0:00:48]}  c2 {[%clk 0:00:03]} 48. Rc1 {[%clk 0:00:48]}  Be7 {[%clk 0:00:03]} 49. Bxc2 {[%clk 0:00:48]}  R8b4 {[%clk 0:00:01]} 50. Be4 {[%clk 0:00:48]}  Kf7 {[%clk 0:00:01]} 51. Bd5+ {[%clk 0:00:49]}  Kf6 {[%clk 0:00:01]} 52. h4 {[%clk 0:00:49]}  Kg6 {[%clk 0:00:01]} 53. Ra1 {[%clk 0:00:49]}  Bf6 {[%clk 0:00:01]} 54. Bxc5 {[%clk 0:00:47]}  R4b3 {[%clk 0:00:01]} 55. Be4+ {[%clk 0:00:47]} 1-0


[Site "https://www.chess.com"]